fUSD/lending_fUSD_20260203
["ID","MTS","AMOUNT","RATE_DAILY","PERIOD"]
[404382930,1770088232677,-500.0,0.0001,2]
[404382932,1770088232687,-500.0,0.0001,2]
[404382934,1770088232697,-500.0,0.0001,2]
[404382936,1770088232707,-500.0,0.0001,2]
[404382938,1770088232718,-500.0,0.0001,2]
[404382940,1770088232729,-200.0,0.0001,2]
[404382942,1770088232739,-500.0,0.0001,2]
[404382944,1770088232749,-500.0,0.0001,2]
[404382946,1770088232760,-151.0,0.0001,2]
[404382949,1770088232770,-151.0,0.0001,2]
[404382951,1770088232790,-151.0,0.0001,2]
[404382953,1770088232801,-151.0,0.0001,2]
[404382955,1770088232812,-151.0,0.0001,2]
[404382957,1770088232822,-151.0,0.0001,2]
[404382959,1770088232832,-151.0,0.0001,2]
[404382961,1770088232842,-151.0,0.0001,2]
[404382963,1770088232852,-151.0,0.0001,2]
[404382965,1770088232862,-151.0,0.0001,2]
[404382967,1770088232872,-151.0,0.0001,2]
[404382969,1770088232883,-151.0,0.0001,2]
[404382971,1770088232894,-151.0,0.0001,2]
[404382973,1770088232905,-151.0,0.0001,2]
[404382975,1770088232915,-151.0,0.0001,2]
[404382977,1770088232926,-151.0,0.0001,2]
[404382979,1770088232936,-151.0,0.0001,2]
[404382981,1770088232946,-151.0,0.0001,2]
[404382983,1770088232957,-151.0,0.0001,2]
[404382985,1770088232967,-151.0,0.0001,2]
[404382988,1770088232981,-151.0,0.0001,2]
[404382990,1770088232992,-151.0,0.0001,2]
[404382992,1770088233004,-151.0,0.0001,2]
[404382994,1770088233015,-151.0,0.0001,2]
[404382996,1770088233025,-151.0,0.0001,2]
[404382998,1770088233036,-151.0,0.0001,2]
[404383000,1770088233046,-151.0,0.0001,2]
[404383002,1770088233056,-151.0,0.0001,2]
[404383004,1770088233068,-151.0,0.0001,2]
[404383006,1770088233079,-200.0,0.0001,2]
[404383008,1770088233089,-151.0,0.0001,2]
[404383010,1770088233100,-151.0,0.0001,2]
[404383012,1770088233110,-150.01713612,0.0001,2]
[404383014,1770088233120,-927.05931723,0.0001,2]
[404383016,1770088233131,-927.05931723,0.0001,2]
[404383018,1770088233142,-500.0,0.00010074,2]
[404383020,1770088233154,-622.18622774,0.00010074,2]
[404383022,1770088233165,-500.0,0.00010074,2]
[404383024,1770088233176,-500.0,0.00010074,2]
[404383027,1770088233190,-568.13485314,0.00010074,2]
[404383029,1770088233202,-501.19379068,0.00010074,2]
[404383031,1770088233213,-500.0,0.00010074,2]
[404383033,1770088233226,-500.0,0.00010074,2]
[404383035,1770088233237,-500.0,0.00010074,2]
[404383037,1770088233247,-500.0,0.00010074,2]
[404383039,1770088233259,-500.0,0.00010074,2]
[404383041,1770088233270,-438.01782069,0.00010074,2]
[404383043,1770088233280,-500.0,0.00010074,2]
[404383045,1770088233290,-500.0,0.00010074,2]
[404383047,1770088233301,-500.0,0.00010074,2]
[404383049,1770088233312,-500.0,0.00010074,2]
[404383051,1770088233323,-500.0,0.00010074,2]
[404383053,1770088233334,-412.57925422,0.00010074,2]
[404383055,1770088233345,-500.0,0.00010074,2]
[404383057,1770088233355,-500.0,0.00010074,2]
[404383059,1770088233366,-157.09559265,0.00010074,2]
[404383061,1770088233377,-501.22725125,0.00010074,2]
[404383064,1770088233392,-153.7070239,0.00010074,2]
[404383066,1770088233403,-500.0,0.00010074,2]
[404383068,1770088233414,-500.0,0.00010074,2]
[404383070,1770088233429,-500.0,0.00010074,2]
[404383072,1770088233440,-500.0,0.00010074,2]
[404383074,1770088233450,-500.0,0.00010074,2]
[404383076,1770088233462,-166.66,0.00010088,2]
[404383078,1770088233474,-500.0,0.00010246,2]
[404383081,1770088233485,-173.17,0.00010283,2]
[404383083,1770088233498,-267.67,0.00010314,2]
[404383085,1770088233510,-48415.40935945,0.00010476,2]
[404383087,1770088233522,-155.0,0.00010519,2]
[404383089,1770088233533,-500.0,0.0001052,2]
[404383091,1770088233545,-200.0,0.00010548,2]
[404383093,1770088233556,-500.0,0.00010548,2]
[404383095,1770088233567,-200.0,0.00010548,2]
[404383097,1770088233578,-433.0,0.00010553,2]
[404383099,1770088233589,-2351.0,0.00010553,2]
[404383101,1770088233601,-727.81084573,0.00010622,2]
[404383103,1770088233616,-1000.0,0.00010622,2]
[404383105,1770088233626,-221.6894181,0.00010622,2]
[404383107,1770088233637,-1000.0,0.00010622,2]
[404383109,1770088233648,-1000.0,0.00010622,2]
[404383111,1770088233659,-1000.0,0.00010622,2]
[404383113,1770088233670,-1000.0,0.00010622,2]
[404383115,1770088233683,-507.89061165,0.00010622,2]
[404383117,1770088233695,-1000.0,0.00010622,2]
[404383119,1770088233706,-1000.0,0.00010622,2]
[404383120,1770088233717,-1000.0,0.00010622,2]
[404383121,1770088233728,-1000.0,0.00010622,2]
[404383122,1770088233738,-1000.0,0.00010622,2]
[404383123,1770088233750,-1051.62801628,0.00010622,2]
[404383124,1770088233765,-565.73255371,0.00010622,2]
[404383125,1770088233777,-1000.0,0.00010622,2]
[404383126,1770088233788,-1000.0,0.00010622,2]
[404383127,1770088233799,-1000.0,0.00010622,2]
[404383128,1770088233810,-1000.0,0.00010622,2]
[404383129,1770088233822,-1000.0,0.00010622,2]
[404383130,1770088233835,-4216.3351622,0.00010672,2]
[404383131,1770088233850,-500.0,0.00010794,2]
[404383132,1770088233862,-183.74,0.00010928,2]
[404383133,1770088233874,-500.0,0.00010959,2]
[404383134,1770088233885,-500.0,0.00011068,2]
[404383135,1770088233897,-235.15813875,0.00011075,2]
[404383136,1770088233908,-150.0,0.00011075,2]
[404383137,1770088233919,-500.0,0.00011075,2]
[404383138,1770088233931,-500.0,0.00011075,2]
[404383139,1770088233943,-150.22197028,0.00011075,2]
[404383140,1770088233954,-150.0,0.00011075,2]
[404383141,1770088233967,-151.09578406,0.00011075,2]
[404383142,1770088233980,-150.0,0.00011075,2]
[404383143,1770088233992,-500.0,0.00011075,2]
[404383144,1770088234003,-500.0,0.00011075,2]
[404383145,1770088234014,-234.73682538,0.00011075,2]
[404383146,1770088234026,-150.25172544,0.00011075,2]
[404383147,1770088234037,-152.15606364,0.00011075,2]
[404383148,1770088234049,-151.84606422,0.00011075,2]
[404383149,1770088234060,-500.0,0.00011075,2]
[404383150,1770088234074,-200.0,0.00011075,2]
[404383151,1770088234085,-154.42202562,0.00011075,2]
[404383152,1770088234097,-637.0,0.00011075,2]
[404383153,1770088234109,-500.0,0.00011075,2]
[404383154,1770088234120,-500.0,0.00011075,2]
[404383155,1770088234131,-500.0,0.00011075,2]
[404383156,1770088234142,-150.0,0.00011075,2]
[404383157,1770088234153,-500.0,0.00011075,2]
[404383158,1770088234164,-749.0,0.00011075,2]
[404383159,1770088234175,-1387.0,0.00011075,2]
[404383160,1770088234186,-500.0,0.00011075,2]
[404383161,1770088234196,-500.0,0.00011075,2]
[404383162,1770088234208,-788.0,0.00011075,2]
[404383163,1770088234219,-500.0,0.00011075,2]
[404383164,1770088234229,-500.0,0.00011075,2]
[404383165,1770088234239,-693.0,0.00011075,2]
[404383166,1770088234249,-500.0,0.00011075,2]
[404383167,1770088234260,-161.04276973,0.00011075,2]
[404383168,1770088234270,-500.0,0.00011075,2]
[404383169,1770088234281,-2206.0,0.00011075,2]
[404383170,1770088234293,-500.0,0.00011075,2]
[404383171,1770088234304,-499.0,0.00011075,2]
[404383172,1770088234315,-500.0,0.00011075,2]
[404383173,1770088234325,-166.11436406,0.00011075,2]
[404383174,1770088234336,-150.0,0.00011075,2]
[404383175,1770088234347,-500.0,0.00011075,2]
[404383176,1770088234357,-498.0,0.00011075,2]
[404383177,1770088234368,-500.0,0.00011075,2]
[404383178,1770088234378,-922.0,0.00011075,2]
[404383179,1770088234388,-150.0,0.00011075,2]
[404383180,1770088234398,-150.0,0.00011075,2]
[404383181,1770088234408,-200.0,0.00011096,2]
[404383182,1770088234418,-500.0,0.00011096,2]
[404383183,1770088234432,-200.0,0.00011096,2]
[404383184,1770088234442,-51832.04586556,0.00011099,2]
[404383185,1770088234452,-51832.04586549,0.00011099,2]
[404383186,1770088234462,-51832.04586549,0.00011099,2]
[404383187,1770088234473,-150.0,0.0001113,2]
[404383188,1770088234485,-500.0,0.0001113,2]
[404383189,1770088234496,-500.0,0.0001113,2]
[404383190,1770088234508,-150.0,0.0001113,2]
[404383191,1770088234518,-150.47155798,0.0001113,2]
[404383192,1770088234528,-500.0,0.0001113,2]
[404383193,1770088234538,-593.83062922,0.0001113,2]
[404383194,1770088234549,-500.0,0.0001113,2]
[404383195,1770088234560,-200.0,0.0001113,2]
[404383196,1770088234571,-637.0,0.0001113,2]
[404383197,1770088234581,-500.0,0.0001113,2]
[404383198,1770088234593,-500.0,0.0001113,2]
[404383199,1770088234604,-500.0,0.0001113,2]
[404383200,1770088234615,-150.0,0.0001113,2]
[404383201,1770088234625,-500.0,0.0001113,2]
[404383202,1770088234636,-749.0,0.0001113,2]
[404383203,1770088234647,-1387.0,0.0001113,2]
[404383204,1770088234658,-500.0,0.0001113,2]
[404383205,1770088234670,-500.0,0.0001113,2]
[404383206,1770088234681,-788.0,0.0001113,2]
[404383207,1770088234692,-500.0,0.0001113,2]
[404383208,1770088234703,-500.0,0.0001113,2]
[404383209,1770088234721,-693.0,0.0001113,2]
[404383210,1770088234735,-500.40130265,0.0001113,2]
[404383211,1770088234748,-500.0,0.0001113,2]
[404383212,1770088234760,-2206.0,0.0001113,2]
[404383213,1770088234771,-500.0,0.0001113,2]
[404383214,1770088234784,-499.0,0.0001113,2]
[404383215,1770088234795,-500.0,0.0001113,2]
[404383216,1770088234807,-500.0,0.0001113,2]
[404383217,1770088234819,-498.0,0.0001113,2]
[404383218,1770088234830,-500.0,0.0001113,2]
[404383219,1770088234842,-922.0,0.0001113,2]
[404383220,1770088234854,-1500.0,0.0001117,2]
[404383221,1770088234867,-702.19051214,0.0001117,2]
[404383222,1770088234879,-1500.0,0.0001117,2]
[404383223,1770088234891,-1500.0,0.0001117,2]
[404383224,1770088234903,-1500.0,0.0001117,2]
[404383225,1770088234914,-1085.6983119,0.0001117,2]
[404383226,1770088234924,-1500.0,0.0001117,2]
[404383227,1770088234935,-1500.0,0.0001117,2]
[404383228,1770088234947,-1500.0,0.0001117,2]
[404383229,1770088234958,-1509.37664533,0.0001117,2]
[404383230,1770088234969,-348.83647081,0.0001117,2]
[404383231,1770088234981,-1500.0,0.0001117,2]
[404383232,1770088234992,-1500.0,0.0001117,2]
[404383233,1770088235005,-1500.0,0.0001117,2]
[404383234,1770088235017,-1500.0,0.0001117,2]
[404383235,1770088235030,-166.64459903,0.00011185,2]
[404383236,1770088235042,-249.274,0.00011185,2]
[404383237,1770088235054,-500.0,0.00011185,2]
[404383238,1770088235067,-150.0,0.00011185,2]
[404383239,1770088235078,-500.0,0.00011185,2]
[404383240,1770088235090,-500.0,0.00011185,2]
[404383241,1770088235102,-200.0,0.00011185,2]
[404383242,1770088235113,-637.0,0.00011185,2]
[404383243,1770088235125,-500.0,0.00011185,2]
[404383244,1770088235136,-500.0,0.00011185,2]
[404383245,1770088235148,-500.0,0.00011185,2]
[404383246,1770088235159,-150.0,0.00011185,2]
[404383247,1770088235175,-500.0,0.00011185,2]
[404383248,1770088235186,-749.0,0.00011185,2]
[404383249,1770088235197,-1387.0,0.00011185,2]
[404383250,1770088235208,-500.0,0.00011185,2]
[404383251,1770088235220,-328.76402702,0.00011185,2]
[404383252,1770088235231,-788.0,0.00011185,2]
[404383253,1770088235242,-157.18184791,0.00011185,2]
[404383254,1770088235253,-500.0,0.00011185,2]
[404383255,1770088235265,-693.0,0.00011185,2]
[404383256,1770088235277,-500.0,0.00011185,2]
[404383257,1770088235288,-500.0,0.00011185,2]
[404383258,1770088235299,-2206.0,0.00011185,2]
[404383259,1770088235310,-499.0,0.00011185,2]
[404383260,1770088235322,-500.0,0.00011185,2]
[404383261,1770088235333,-498.0,0.00011185,2]
[404383262,1770088235345,-500.0,0.00011185,2]
[404383263,1770088235357,-500.0,0.00011185,2]
[404383264,1770088235368,-922.0,0.00011185,2]
[404383265,1770088235379,-500.0,0.00011239,2]
[404383266,1770088235391,-150.0,0.00011239,2]
[404383267,1770088235401,-500.0,0.00011239,2]
[404383268,1770088235412,-500.0,0.00011239,2]
[404383269,1770088235423,-200.0,0.00011239,2]
[404383270,1770088235438,-637.0,0.00011239,2]
[404383271,1770088235449,-500.0,0.00011239,2]
[404383272,1770088235459,-500.0,0.00011239,2]
[404383273,1770088235471,-500.0,0.00011239,2]
[404383274,1770088235482,-150.0,0.00011239,2]
[404383275,1770088235493,-749.0,0.00011239,2]
[404383276,1770088235506,-500.0,0.00011239,2]
[404383277,1770088235516,-1387.0,0.00011239,2]
[404383278,1770088235527,-500.0,0.00011239,2]
[404383279,1770088235537,-788.0,0.00011239,2]
[404383280,1770088235547,-500.0,0.00011239,2]
[404383281,1770088235558,-693.0,0.00011239,2]
[404383282,1770088235569,-500.0,0.00011239,2]
[404383283,1770088235581,-500.0,0.00011239,2]
[404383284,1770088235592,-2206.0,0.00011239,2]
[404383285,1770088235604,-499.0,0.00011239,2]
[404383286,1770088235615,-500.0,0.00011239,2]
[404383287,1770088235625,-500.0,0.00011239,2]
[404383288,1770088235636,-498.0,0.00011239,2]
[404383289,1770088235647,-500.0,0.00011239,2]
[404383290,1770088235657,-922.0,0.00011239,2]
[404383291,1770088235667,-151.0,0.00011291,2]
[404383292,1770088235679,-503.79478241,0.00011294,2]
[404383293,1770088235691,-215.80780147,0.00011294,2]
[404383294,1770088235702,-500.0,0.00011294,2]
[404383295,1770088235713,-500.0,0.00011294,2]
[404383296,1770088235724,-235.46578817,0.00011294,2]
[404383297,1770088235735,-637.0,0.00011294,2]
[404383298,1770088235747,-500.0,0.00011294,2]
[404383299,1770088235758,-500.0,0.00011294,2]
[404383300,1770088235769,-500.0,0.00011294,2]
[404383301,1770088235780,-150.0,0.00011294,2]
[404383302,1770088235791,-749.0,0.00011294,2]
[404383303,1770088235802,-500.0,0.00011294,2]
[404383304,1770088235813,-1387.0,0.00011294,2]
[404383305,1770088235823,-444.9503424,0.00011294,2]
[404383306,1770088235835,-788.0,0.00011294,2]
[404383307,1770088235846,-500.0,0.00011294,2]
[404383308,1770088235857,-693.0,0.00011294,2]
[404383309,1770088235869,-500.0,0.00011294,2]
[404383310,1770088235880,-500.0,0.00011294,2]
[404383311,1770088235891,-2206.0,0.00011294,2]
[404383312,1770088235903,-499.0,0.00011294,2]
[404383313,1770088235914,-500.0,0.00011294,2]
[404383314,1770088235926,-500.0,0.00011294,2]
[404383315,1770088235937,-498.0,0.00011294,2]
[404383316,1770088235949,-500.0,0.00011294,2]
[404383317,1770088235962,-922.0,0.00011294,2]
[404383318,1770088235972,-500.0,0.00011342,2]
[404383319,1770088235984,-500.0,0.00011349,2]
[404383320,1770088235997,-507.03032362,0.00011349,2]
[404383321,1770088236011,-637.0,0.00011349,2]
[404383322,1770088236022,-500.0,0.00011349,2]
[404383323,1770088236034,-500.0,0.00011349,2]
[404383324,1770088236048,-500.0,0.00011349,2]
[404383325,1770088236061,-155.97893314,0.00011349,2]
[404383326,1770088236072,-749.0,0.00011349,2]
[404383327,1770088236084,-500.0,0.00011349,2]
[404383328,1770088236095,-1387.0,0.00011349,2]
[404383329,1770088236105,-788.0,0.00011349,2]
[404383330,1770088236117,-500.0,0.00011349,2]
[404383331,1770088236128,-693.0,0.00011349,2]
[404383332,1770088236139,-500.0,0.00011349,2]
[404383333,1770088236150,-500.0,0.00011349,2]
[404383334,1770088236161,-2206.0,0.00011349,2]
[404383335,1770088236172,-499.0,0.00011349,2]
[404383336,1770088236183,-500.0,0.00011349,2]
[404383337,1770088236195,-500.0,0.00011349,2]
[404383338,1770088236205,-498.0,0.00011349,2]
[404383339,1770088236217,-500.0,0.00011349,2]
[404383340,1770088236227,-922.0,0.00011349,2]
[404383341,1770088236240,-500.0,0.00011404,2]
[404383342,1770088236253,-637.0,0.00011404,2]
[404383343,1770088236264,-500.0,0.00011404,2]
[404383344,1770088236275,-158.48775594,0.00011404,2]
[404383345,1770088236287,-500.0,0.00011404,2]
[404383346,1770088236298,-749.0,0.00011404,2]
[404383347,1770088236310,-500.0,0.00011404,2]
[404383348,1770088236320,-1387.0,0.00011404,2]
[404383349,1770088236332,-788.0,0.00011404,2]
[404383350,1770088236344,-500.0,0.00011404,2]
[404383351,1770088236355,-693.0,0.00011404,2]
[404383352,1770088236366,-483.73315311,0.00011404,2]
[404383353,1770088236377,-500.0,0.00011404,2]
[404383354,1770088236389,-2206.0,0.00011404,2]
[404383355,1770088236400,-499.0,0.00011404,2]
[404383356,1770088236411,-604.04945423,0.00011404,2]
[404383357,1770088236422,-500.0,0.00011404,2]
[404383358,1770088236436,-498.0,0.00011404,2]
[404383359,1770088236448,-500.0,0.00011404,2]
[404383360,1770088236460,-922.0,0.00011404,2]
[404383361,1770088236471,-500.0,0.00011459,2]
[404383362,1770088236481,-637.0,0.00011459,2]
[404383363,1770088236492,-500.0,0.00011459,2]
[404383364,1770088236506,-500.0,0.00011459,2]
[404383365,1770088236517,-749.0,0.00011459,2]
[404383366,1770088236528,-500.0,0.00011459,2]
[404383367,1770088236539,-1387.0,0.00011459,2]
[404383368,1770088236551,-788.0,0.00011459,2]
[404383369,1770088236562,-500.0,0.00011459,2]
[404383370,1770088236574,-693.0,0.00011459,2]
[404383371,1770088236585,-500.0,0.00011459,2]
[404383372,1770088236598,-2206.0,0.00011459,2]
[404383373,1770088236609,-499.0,0.00011459,2]
[404383374,1770088236620,-500.0,0.00011459,2]
[404383375,1770088236630,-498.0,0.00011459,2]
[404383376,1770088236641,-500.0,0.00011459,2]
[404383377,1770088236653,-922.0,0.00011459,2]
[404383378,1770088236666,-330.77068013,0.00011513,2]
[404383379,1770088236679,-637.0,0.00011513,2]
[404383380,1770088236694,-370.03132092,0.00011513,2]
[404383381,1770088236705,-500.0,0.00011513,2]
[404383382,1770088236715,-500.0,0.00011513,2]
[404383383,1770088236727,-749.0,0.00011513,2]
[404383384,1770088236737,-1387.0,0.00011513,2]
[404383385,1770088236748,-788.0,0.00011513,2]
[404383386,1770088236759,-500.0,0.00011513,2]
[404383387,1770088236770,-693.0,0.00011513,2]
[404383388,1770088236780,-288.3862383,0.00011513,2]
[404383389,1770088236793,-2206.0,0.00011513,2]
[404383390,1770088236803,-499.0,0.00011513,2]
[404383391,1770088236814,-500.0,0.00011513,2]
[404383392,1770088236825,-498.0,0.00011513,2]
[404383393,1770088236836,-500.0,0.00011513,2]
[404383394,1770088236849,-922.0,0.00011513,2]
[404383395,1770088236861,-150.01713612,0.00011525,2]
[404383396,1770088236873,-250.0,0.00011525,2]
[404383397,1770088236884,-637.0,0.00011568,2]
[404383398,1770088236895,-500.0,0.00011568,2]
[404383399,1770088236907,-500.0,0.00011568,2]
[404383400,1770088236918,-749.0,0.00011568,2]
[404383401,1770088236935,-1387.0,0.00011568,2]
[404383402,1770088236947,-788.0,0.00011568,2]
[404383403,1770088236959,-500.0,0.00011568,2]
[404383404,1770088236971,-693.0,0.00011568,2]
[404383407,1770088237258,-2206.0,0.00011568,2]
[404383408,1770088237272,-499.0,0.00011568,2]
[404383409,1770088237284,-500.0,0.00011568,2]
[404383410,1770088237296,-498.0,0.00011568,2]
[404383411,1770088237307,-500.0,0.00011568,2]
[404383412,1770088237318,-922.0,0.00011568,2]
[404383413,1770088237329,-2020.56454931,0.00011591,2]
[404383415,1770088237340,-200.23794683,0.00011591,2]
[404383417,1770088237350,-736.0,0.00011608,2]
[404383418,1770088237361,-3292.0,0.00011608,2]
[404383419,1770088237373,-500.0,0.00011616,2]
[404383420,1770088237385,-637.0,0.00011623,2]
[404383421,1770088237395,-500.0,0.00011623,2]
[404383422,1770088237406,-500.0,0.00011623,2]
[404383423,1770088237417,-749.0,0.00011623,2]
[404383424,1770088237429,-1387.0,0.00011623,2]
[404383425,1770088237440,-788.0,0.00011623,2]
[404383426,1770088237451,-500.0,0.00011623,2]
[404383427,1770088237463,-693.0,0.00011623,2]
[404383428,1770088237476,-2206.0,0.00011623,2]
[404383429,1770088237487,-499.0,0.00011623,2]
[404383430,1770088237499,-500.0,0.00011623,2]
[404383431,1770088237511,-498.0,0.00011623,2]
[404383432,1770088237522,-500.0,0.00011623,2]
[404383433,1770088237534,-922.0,0.00011623,2]
[404383434,1770088237545,-200.0,0.00011644,2]
[404383435,1770088237555,-500.0,0.00011644,2]
[404383436,1770088237567,-200.0,0.00011644,2]
[404383437,1770088237578,-4216.3351622,0.00011674,2]
[404383439,1770088237589,-637.0,0.00011678,2]
[404383441,1770088237601,-500.0,0.00011678,2]
[404383443,1770088237613,-500.0,0.00011678,2]
[404383445,1770088237626,-749.0,0.00011678,2]
[404383447,1770088237636,-1387.0,0.00011678,2]
[404383448,1770088237646,-788.0,0.00011678,2]
[404383449,1770088237657,-500.0,0.00011678,2]
[404383450,1770088237667,-693.0,0.00011678,2]
[404383451,1770088237677,-2206.0,0.00011678,2]
[404383452,1770088237687,-499.0,0.00011678,2]
[404383453,1770088237698,-500.0,0.00011678,2]
[404383454,1770088237714,-498.0,0.00011678,2]
[404383455,1770088237724,-500.0,0.00011678,2]
[404383456,1770088237736,-922.0,0.00011678,2]
[404383457,1770088237747,-2000.0,0.00011718,2]
[404383458,1770088237758,-2000.0,0.00011718,2]
[404383459,1770088237771,-2000.0,0.00011718,2]
[404383460,1770088237781,-2000.0,0.00011718,2]
[404383461,1770088237792,-2000.0,0.00011718,2]
[404383462,1770088237804,-2000.0,0.00011718,2]
[404383463,1770088237815,-2000.0,0.00011718,2]
[404383464,1770088237825,-2000.0,0.00011718,2]
[404383465,1770088237836,-2000.0,0.00011718,2]
[404383466,1770088237847,-2000.0,0.00011718,2]
[404383467,1770088237858,-2000.0,0.00011718,2]
[404383468,1770088237868,-51832.04586549,0.00011726,2]
[404383469,1770088237880,-637.0,0.00011733,2]
[404383470,1770088237892,-500.0,0.00011733,2]
[404383471,1770088237904,-749.0,0.00011733,2]
[404383472,1770088237916,-500.0,0.00011733,2]
[404383473,1770088237926,-1387.0,0.00011733,2]
[404383474,1770088237938,-788.0,0.00011733,2]
[404383475,1770088237951,-500.0,0.00011733,2]
[404383476,1770088237961,-693.0,0.00011733,2]
[404383477,1770088237972,-2206.0,0.00011733,2]
[404383478,1770088237982,-499.0,0.00011733,2]
[404383479,1770088237994,-500.0,0.00011733,2]
[404383480,1770088238006,-498.0,0.00011733,2]
[404383481,1770088238016,-500.0,0.00011733,2]
[404383482,1770088238027,-922.0,0.00011733,2]
[404383483,1770088238039,-637.0,0.00011787,2]
[404383484,1770088238050,-500.0,0.00011787,2]
[404383485,1770088238062,-500.0,0.00011787,2]
[404383486,1770088238073,-749.0,0.00011787,2]
[404383487,1770088238085,-1387.0,0.00011787,2]
[404383488,1770088238096,-788.0,0.00011787,2]
[404383489,1770088238108,-388.45274978,0.00011787,2]
[404383490,1770088238119,-693.0,0.00011787,2]
[404383491,1770088238130,-2206.0,0.00011787,2]
[404383492,1770088238142,-499.0,0.00011787,2]
[404383493,1770088238161,-319.33114122,0.00011787,2]
[404383494,1770088238175,-385.46853709,0.00011787,2]
[404383495,1770088238188,-498.0,0.00011787,2]
[404383496,1770088238199,-922.0,0.00011787,2]
[404383497,1770088238212,-637.0,0.00011842,2]
[404383498,1770088238224,-500.0,0.00011842,2]
[404383499,1770088238237,-500.0,0.00011842,2]
[404383500,1770088238249,-749.0,0.00011842,2]
[404383501,1770088238261,-1387.0,0.00011842,2]
[404383502,1770088238273,-788.0,0.00011842,2]
[404383503,1770088238284,-693.0,0.00011842,2]
[404383504,1770088238295,-2206.0,0.00011842,2]
[404383506,1770088238307,-499.0,0.00011842,2]
[404383508,1770088238318,-498.0,0.00011842,2]
[404383510,1770088238331,-922.0,0.00011842,2]
[404383512,1770088238342,-500.0,0.0001189,2]
[404383514,1770088238355,-637.0,0.00011897,2]
[404383516,1770088238367,-500.0,0.00011897,2]
[404383518,1770088238379,-500.0,0.00011897,2]
[404383520,1770088238390,-749.0,0.00011897,2]
[404383522,1770088238401,-1387.0,0.00011897,2]
[404383525,1770088238414,-788.0,0.00011897,2]
[404383527,1770088238427,-693.0,0.00011897,2]
[404383529,1770088238439,-2206.0,0.00011897,2]
[404383531,1770088238451,-499.0,0.00011897,2]
[404383533,1770088238462,-498.0,0.00011897,2]
[404383534,1770088238474,-922.0,0.00011897,2]
[404383536,1770088238486,-637.0,0.00011952,2]
[404383538,1770088238498,-500.0,0.00011952,2]
[404383541,1770088238513,-500.0,0.00011952,2]
[404383543,1770088238525,-749.0,0.00011952,2]
[404383545,1770088238537,-1387.0,0.00011952,2]
[404383546,1770088238548,-788.0,0.00011952,2]
[404383548,1770088238558,-693.0,0.00011952,2]
[404383551,1770088238570,-2206.0,0.00011952,2]
[404383553,1770088238581,-499.0,0.00011952,2]
[404383555,1770088238592,-498.0,0.00011952,2]
[404383557,1770088238602,-922.0,0.00011952,2]
[404383558,1770088238614,-200.0,0.00012,2]
[404383561,1770088238629,-637.0,0.00012007,2]
[404383563,1770088238640,-500.0,0.00012007,2]
[404383565,1770088238650,-500.0,0.00012007,2]
[404383567,1770088238660,-749.0,0.00012007,2]